[Event "94th Paris-ch  2019"]
[Site "Paris"]
[Date "2019.07.09"]
[Round "4.8"]
[White "Verstraeten, Rein"]
[Black "Dutreuil, Raphael"]
[Result "1/2-1/2"]
[ECO "B36"]
[WhiteElo "2376"]
[BlackElo "2302"]
[Annotator "NA"]
[PlyCount "65"]
[EventDate "2019.07.07"]
[EventType "swiss"]
[EventCountry "FRA"]
[SourceTitle "playchess.com"]
[Source "ChessBase"]
[SourceQuality "1"]
[TimeControl "5400+30"]

1. Nf3 {[%emt 0:08:46]} c5 {[%emt 0:02:03]} 2. c4 {[%emt 0:00:09]} g6 {[%emt 0:00:05]} 3. d4 {[%emt 0:00:11]} cxd4 {[%emt 0:00:07]} 4. Nxd4 {[%emt 0:00:04]} Nc6 {[%emt 0:01:15]} 5. e4 {[%emt 0:00:16]} Nf6 {[%emt 0:01:04]} 6. Nc3 {[%emt 0:00:16]} d6 {[%emt 0:00:17]} 7. Be2 {[%emt 0:00:11]} Nxd4 {[%emt 0:02:18]} 8. Qxd4 {[%emt 0:00:08]} Bg7 {[%emt 0:00:04]} 9. Bg5 {[%emt 0:00:10]} O-O {[%emt 0:00:11]} 10. Qd2 {[%emt 0:00:04]} Qa5 {[%emt 0:04:19]} 11. Rc1 {[%emt 0:00:46]} Be6 {[%emt 0:00:18]} 12. f3 {[%emt 0:00:10]} Rfc8 {[%emt 0:00:42]} 13. b3 {[%emt 0:00:18]} a6 {[%emt 0:00:24]} 14. Na4 {[%emt 0:00:10]} Qxd2+ {[%emt 0:00:28]} 15. Kxd2 {[%emt 0:00:10]} Nd7 {[%emt 0:00:14]} 16. g4 {[%emt 0:00:31]} f6 {[%emt 0:07:35]} 17. Be3 {[%emt 0:12:33]} f5 {[%emt 0:00:33]} 18. exf5 {[%emt 0:00:13]} gxf5 {[%emt 0:00:06]} 19. h3 {[%emt 0:02:07]} Rf8 {[%emt 0:02:33]} 20. f4 {[%emt 0:09:07]} Rad8 {[%emt 0:13:36]} 21. Bd3 {[%emt 0:12:31]} d5 {[%emt 0:13:07]} 22. gxf5 {[%emt 0:13:13]} Bxf5 {[%emt 0:01:10]} 23. cxd5 {[%emt 0:00:08]} Bxd3 {[%emt 0:01:42]} 24. Kxd3 {[%emt 0:00:07]} Nf6 {[%emt 0:00:55]} 25. Nb6 {[%emt 0:01:24]} Nxd5 {[%emt 0:00:35]} 26. Nxd5 {[%emt 0:00:08]} Rxd5+ {[%emt 0:00:05]} 27. Ke4 {[%emt 0:00:09]} Rd7 {[%emt 0:04:25]} 28. Rhg1 {[%emt 0:02:37]} Kf7 {[%emt 0:01:37]} 29. Rc5 {[%emt 0:01:32]} Rd6 {[%emt 0:11:37]} 30. f5 {[%emt 0:12:56]} Rfd8 {[%emt 0:04:02]} 31. Rc7 {[%emt 0:04:17]} Bd4 {[%emt 0:07:03]} 32. Re1 {[%emt 0:05:58]} Bxe3 {[%emt 0:00:21]} 33. Rxe3 {[%emt 0:00:06]} 1/2-1/2

[Event "94th Paris-ch  2019"]
[Site "Paris"]
[Date "2019.07.09"]
[Round "4.9"]
[White "Akshat, Khamparia"]
[Black "Tomasi, Albert"]
[Result "1/2-1/2"]
[ECO "A34"]
[WhiteElo "2398"]
[BlackElo "2300"]
[Annotator "NA"]
[PlyCount "86"]
[EventDate "2019.07.07"]
[EventType "swiss"]
[EventCountry "FRA"]
[SourceTitle "playchess.com"]
[Source "ChessBase"]
[SourceQuality "1"]
[TimeControl "5400+30"]

1. d4 {[%emt 0:08:46]} Nf6 {[%emt 0:00:49]} 2. c4 {[%emt 0:00:10]} g6 {[%emt 0:00:13]} 3. Nc3 {[%emt 0:00:19]} d5 {[%emt 0:00:10]} 4. Nf3 {[%emt 0:09:21]} Bg7 {[%emt 0:00:47]} 5. cxd5 {[%emt 0:00:56]} Nxd5 {[%emt 0:00:10]} 6. Bg5 {[%emt 0:00:03]} Nxc3 {[%emt 0:01:09]} 7. bxc3 {[%emt 0:00:06]} c5 {[%emt 0:00:12]} 8. e3 {[%emt 0:02:25]} Qa5 {[%emt 0:00:25]} 9. Qd2 {[%emt 0:00:29]} Nc6 {[%emt 0:00:36]} 10. Be2 {[%emt 0:00:57]} O-O {[%emt 0:04:09]} 11. O-O {[%emt 0:02:55]} Rd8 {[%emt 0:03:20]} 12. Qb2 {[%emt 0:02:08]} Rb8 {[%emt 0:32:41]} 13. Bf4 {[%emt 0:04:26]} cxd4 {[%emt 0:00:18]} 14. cxd4 {[%emt 0:00:37]} e5 {[%emt 0:00:13]} 15. dxe5 {[%emt 0:02:39]} Bg4 {[%emt 0:01:24]} 16. Rad1 {[%emt 0:03:46]} Bxf3 {[%emt 0:11:39]} 17. gxf3 {[%emt 0:13:46]} Nxe5 {[%emt 0:03:37]} 18. Qb3 {[%emt 0:02:28]} Rd2 {[%emt 0:13:36]} 19. Rxd2 {[%emt 0:20:24]} Qxd2 {[%emt 0:00:07]} 20. Bxe5 {[%emt 0:00:22]} Bxe5 {[%emt 0:00:26]} 21. Bc4 {[%emt 0:00:28]} Qd7 {[%emt 0:02:29]} 22. Rd1 {[%emt 0:01:10]} Qc7 {[%emt 0:04:36]} 23. f4 {[%emt 0:01:09]} Bf6 {[%emt 0:00:15]} 24. Qb5 {[%emt 0:05:43]} Rc8 {[%emt 0:00:28]} 25. Bb3 {[%emt 0:04:20]} a6 {[%emt 0:00:16]} 26. Qd7 {[%emt 0:00:36]} Be7 {[%emt 0:00:53]} 27. e4 {[%emt 0:07:11]} b6 {[%emt 0:10:53]} 28. e5 {[%emt 0:01:22]} Kf8 {[%emt 0:01:15]} 29. Qh3 {[%emt 0:04:50]} h5 {[%emt 0:02:18]} 30. f5 {[%emt 0:02:45]} Rd8 {[%emt 0:02:55]} 31. f6 {[%emt 0:03:57]} Rxd1+ {[%emt 0:00:27]} 32. Bxd1 {[%emt 0:00:06]} Bc5 {[%emt 0:00:07]} 33. e6 {[%emt 0:01:04]} fxe6 {[%emt 0:00:58]} 34. Qxe6 {[%emt 0:00:50]} Qf4 {[%emt 0:02:12]} 35. Qc8+ {[%emt 0:01:40]} Kf7 {[%emt 0:01:28]} 36. Bb3+ {[%emt 0:00:42]} Kxf6 {[%emt 0:00:05]} 37. Qd8+ {[%emt 0:00:53]} Kg7 {[%emt 0:00:34]} 38. Qg8+ {[%emt 0:00:37]} Kh6 {[%emt 0:00:23]} 39. Qh8+ {[%emt 0:00:12]} Kg5 {[%emt 0:00:06]} 40. Qd8+ {[%emt 0:00:15]} Kh6 {[%emt 0:00:23]} 41. Qh8+ {[%emt 0:00:08]} Kg5 {[%emt 0:00:04]} 42. Qd8+ {[%emt 0:00:04]} Kh6 {[%emt 0:01:10]} 43. Qh8+ {[%emt 0:00:06]} Kg5 {[%emt 0:00:09]} 1/2-1/2

[Event "94th Paris-ch  2019"]
[Site "Paris"]
[Date "2019.07.09"]
[Round "4.10"]
[White "Le Goff, Ronan"]
[Black "Stephan, Victor"]
[Result "0-1"]
[ECO "D02"]
[WhiteElo "2281"]
[BlackElo "2358"]
[Annotator "NA"]
[PlyCount "100"]
[EventDate "2019.07.07"]
[EventType "swiss"]
[EventCountry "FRA"]
[SourceTitle "playchess.com"]
[Source "ChessBase"]
[SourceQuality "1"]
[TimeControl "5400+30"]

1. d4 {[%emt 0:09:01]} Nf6 {[%emt 0:00:47]} 2. Nf3 {[%emt 0:00:07]} e6 {[%emt 0:00:29]} 3. Bf4 {[%emt 0:00:45]} d5 {[%emt 0:00:21]} 4. e3 {[%emt 0:00:13]} Bd6 {[%emt 0:00:50]} 5. Bg3 {[%emt 0:02:25]} O-O {[%emt 0:00:24]} 6. Nbd2 {[%emt 0:01:28]} c5 {[%emt 0:00:51]} 7. Bd3 {[%emt 0:03:07]} Qc7 {[%emt 0:04:24]} 8. c4 {[%emt 0:08:03]} Nbd7 {[%emt 0:05:06]} 9. cxd5 {[%emt 0:04:59]} exd5 {[%emt 0:02:07]} 10. O-O {[%emt 0:09:11]} c4 {[%emt 0:07:04]} 11. Bc2 {[%emt 0:01:45]} Bxg3 {[%emt 0:00:56]} 12. hxg3 {[%emt 0:00:09]} b5 {[%emt 0:01:25]} 13. Re1 {[%emt 0:09:19]} Bb7 {[%emt 0:01:35]} 14. Bf5 {[%emt 0:06:36]} Rfe8 {[%emt 0:04:24]} 15. Bxd7 {[%emt 0:04:25]} Qxd7 {[%emt 0:04:13]} 16. Ne5 {[%emt 0:00:12]} Qe6 {[%emt 0:02:50]} 17. Nf1 {[%emt 0:07:50]} Ne4 {[%emt 0:02:53]} 18. f3 {[%emt 0:04:18]} Nd6 {[%emt 0:02:52]} 19. Ng4 {[%emt 0:00:24]} b4 {[%emt 0:04:08]} 20. Nf2 {[%emt 0:00:39]} a5 {[%emt 0:01:31]} 21. a4 {[%emt 0:01:19]} Rac8 {[%emt 0:01:42]} 22. g4 {[%emt 0:00:36]} Qh6 {[%emt 0:05:51]} 23. f4 {[%emt 0:01:36]} Re7 {[%emt 0:02:43]} 24. Qf3 {[%emt 0:02:09]} Rce8 {[%emt 0:02:25]} 25. Ng3 {[%emt 0:02:06]} Qe6 {[%emt 0:02:40]} 26. f5 {[%emt 0:01:07]} Qh6 {[%emt 0:00:51]} 27. Nf1 {[%emt 0:01:15]} Ne4 {[%emt 0:02:11]} 28. Nh3 {[%emt 0:01:35]} Ng5 {[%emt 0:10:09]} 29. Qg3 {[%emt 0:00:18]} Nxh3+ {[%emt 0:00:58]} 30. gxh3 {[%emt 0:00:13]} Re4 {[%emt 0:01:01]} 31. Kg2 {[%emt 0:02:47]} Qg5 {[%emt 0:01:16]} 32. Qc7 {[%emt 0:02:12]} R4e7 {[%emt 0:00:45]} 33. Qg3 {[%emt 0:01:40]} h5 {[%emt 0:00:24]} 34. f6 {[%emt 0:03:35]} Qxf6 {[%emt 0:02:37]} 35. gxh5 {[%emt 0:00:12]} Qh6 {[%emt 0:00:23]} 36. Qf2 {[%emt 0:00:59]} Qxh5 {[%emt 0:01:39]} 37. Ng3 {[%emt 0:00:08]} Qg5 {[%emt 0:00:54]} 38. h4 {[%emt 0:00:38]} Qg4 {[%emt 0:01:03]} 39. Qf5 {[%emt 0:01:00]} Bc8 {[%emt 0:01:06]} 40. Qxg4 {[%emt 0:00:22]} Bxg4 {[%emt 0:00:05]} 41. Nf1 {[%emt 0:00:38]} Bf5 {[%emt 0:01:23]} 42. Kf2 {[%emt 0:00:25]} Bc2 {[%emt 0:01:41]} 43. Rac1 {[%emt 0:00:25]} b3 {[%emt 0:01:27]} 44. Ng3 {[%emt 0:00:21]} Re6 {[%emt 0:01:05]} 45. Nh5 {[%emt 0:00:27]} c3 {[%emt 0:03:08]} 46. bxc3 {[%emt 0:00:13]} Bg6 {[%emt 0:00:07]} 47. Nf4 {[%emt 0:00:27]} b2 {[%emt 0:00:33]} 48. Rcd1 {[%emt 0:00:46]} Rf6 {[%emt 0:00:52]} 49. Kg3 {[%emt 0:00:09]} b1=Q {[%emt 0:00:37]} 50. Rxb1 {[%emt 0:00:06]} Bxb1 {[%emt 0:00:04]} 0-1

[Event "94th Paris-ch  2019"]
[Site "Paris"]
[Date "2019.07.09"]
[Round "4.11"]
[White "Dixit, Nikhil"]
[Black "Rahul Srivatshav P"]
[Result "1-0"]
[ECO "B43"]
[WhiteElo "2318"]
[BlackElo "2414"]
[Annotator "NA"]
[PlyCount "99"]
[EventDate "2019.07.07"]
[EventType "swiss"]
[EventCountry "FRA"]
[SourceTitle "playchess.com"]
[Source "ChessBase"]
[SourceDate "2019.07.09"]
[SourceQuality "1"]
[TimeControl "5400+30"]

1. e4 {[%emt 0:08:48]} c5 {[%emt 0:00:10]} 2. Nf3 {[%emt 0:00:06]} e6 {[%emt 0:00:10]} 3. d4 {[%emt 0:01:42]} cxd4 {[%emt 0:00:16]} 4. Nxd4 {[%emt 0:00:03]} a6 {[%emt 0:00:22]} 5. Nc3 {[%emt 0:01:06]} Qc7 {[%emt 0:00:17]} 6. Bd3 {[%emt 0:01:57]} Nf6 {[%emt 0:03:08]} 7. O-O {[%emt 0:00:49]} d6 {[%emt 0:00:27]} 8. a4 {[%emt 0:06:47]} b6 {[%emt 0:00:14]} 9. f4 {[%emt 0:02:10]} Bb7 {[%emt 0:00:48]} 10. Qe2 {[%emt 0:02:11]} Nbd7 {[%emt 0:01:11]} 11. Bd2 {[%emt 0:06:13]} Be7 {[%emt 0:00:50]} 12. Rae1 {[%emt 0:00:56]} Nc5 {[%emt 0:01:27]} 13. b4 {[%emt 0:05:22]} Nxd3 {[%emt 0:01:12]} 14. cxd3 {[%emt 0:00:13]} Rc8 {[%emt 0:03:14]} 15. Rc1 {[%emt 0:04:10]} Qb8 {[%emt 0:02:36]} 16. b5 {[%emt 0:05:28]} O-O {[%emt 0:02:22]} 17. Be3 {[%emt 0:02:18]} Nd7 {[%emt 0:07:47]} 18. f5 {[%emt 0:10:03]} e5 {[%emt 0:06:37]} 19. Nc6 {[%emt 0:02:00]} Rxc6 {[%emt 0:30:48]} 20. bxc6 {[%emt 0:02:09]} Bxc6 {[%emt 0:00:04]} 21. a5 {[%emt 0:10:47]} bxa5 {[%emt 0:02:03]} 22. Qa2 {[%emt 0:00:48]} Bd8 {[%emt 0:03:02]} 23. Kh1 {[%emt 0:06:06]} Nf6 {[%emt 0:09:23]} 24. Bg5 {[%emt 0:02:39]} Nh5 {[%emt 0:01:03]} 25. Bxd8 {[%emt 0:05:33]} Qxd8 {[%emt 0:00:09]} 26. Nd5 {[%emt 0:08:48]} Bxd5 {[%emt 0:01:15]} 27. Qxd5 {[%emt 0:00:11]} Nf4 {[%emt 0:05:29]} 28. Qc4 {[%emt 0:01:14]} d5 {[%emt 0:01:04]} 29. exd5 {[%emt 0:02:02]} Nxd5 {[%emt 0:00:07]} 30. Qe4 {[%emt 0:01:13]} Nb4 {[%emt 0:06:34]} 31. Rcd1 {[%emt 0:01:29]} Qd4 {[%emt 0:05:27]} 32. Qxd4 {[%emt 0:04:44]} exd4 {[%emt 0:00:01]} 33. h3 {[%emt 0:01:09]} Rd8 {[%emt 0:01:31]} 34. Rd2 {[%emt 0:01:06]} h6 {[%emt 0:02:07]} 35. g4 {[%emt 0:01:20]} Rd5 {[%emt 0:00:58]} 36. Rc1 {[%emt 0:01:06]} a4 {[%emt 0:01:41]} 37. Rc8+ {[%emt 0:01:27]} Kh7 {[%emt 0:00:02]} 38. Re2 {[%emt 0:00:05]} g6 {[%emt 0:02:05]} 39. Re7 {[%emt 0:00:44]} gxf5 {[%emt 0:00:15]} 40. Rxf7+ {[%emt 0:00:09]} Kg6 {[%emt 0:00:04]} 41. Rb7 {[%emt 0:00:39]} Nxd3 {[%emt 0:00:55]} 42. Rb6+ {[%emt 0:01:11]} Kg5 {[%emt 0:00:13]} 43. Rxa6 {[%emt 0:00:07]} Nc5 {[%emt 0:01:47]} 44. Ra5 {[%emt 0:00:40]} d3 {[%emt 0:00:21]} 45. Rcxc5 {[%emt 0:00:09]} Rxc5 {[%emt 0:00:37]} 46. Rxc5 {[%emt 0:00:01]} a3 {[%emt 0:00:18]} 47. Rxf5+ {[%emt 0:00:06]} Kg6 {[%emt 0:00:12]} 48. Kg2 {[%emt 0:00:17]} a2 {[%emt 0:00:25]} 49. Rf1 {[%emt 0:00:03]} d2 {[%emt 0:00:20]} 50. h4 {[%emt 0:00:12]} 1-0

[Event "94th Paris-ch  2019"]
[Site "Paris"]
[Date "2019.07.09"]
[Round "4.12"]
[White "Fitzsimons, David"]
[Black "Moksh Amit Doshi"]
[Result "0-1"]
[ECO "C54"]
[WhiteElo "2301"]
[BlackElo "2229"]
[Annotator "NA"]
[PlyCount "206"]
[EventDate "2019.07.07"]
[EventType "swiss"]
[EventCountry "FRA"]
[SourceTitle "playchess.com"]
[Source "ChessBase"]
[SourceQuality "1"]
[TimeControl "5400+30"]

1. e4 {[%emt 0:08:46]} e5 {[%emt 0:01:03]} 2. Nf3 {[%emt 0:00:17]} Nc6 {[%emt 0:00:10]} 3. Bc4 {[%emt 0:00:17]} Bc5 {[%emt 0:00:10]} 4. O-O {[%emt 0:00:13]} Nf6 {[%emt 0:00:08]} 5. d3 {[%emt 0:00:07]} d6 {[%emt 0:00:21]} 6. c3 {[%emt 0:00:13]} a6 {[%emt 0:01:02]} 7. Bb3 {[%emt 0:00:30]} O-O {[%emt 0:00:09]} 8. h3 {[%emt 0:00:31]} h6 {[%emt 0:00:17]} 9. Re1 {[%emt 0:02:36]} Re8 {[%emt 0:00:12]} 10. Nbd2 {[%emt 0:00:39]} Be6 {[%emt 0:00:22]} 11. Bc2 {[%emt 0:01:18]} d5 {[%emt 0:00:24]} 12. Qe2 {[%emt 0:01:31]} dxe4 {[%emt 0:04:04]} 13. dxe4 {[%emt 0:00:07]} Nh5 {[%emt 0:01:07]} 14. Nb3 {[%emt 0:10:57]} Bxb3 {[%emt 0:09:23]} 15. Bxb3 {[%emt 0:02:30]} Qf6 {[%emt 0:00:43]} 16. Bd5 {[%emt 0:07:26]} Rab8 {[%emt 0:05:07]} 17. b4 {[%emt 0:08:29]} Bb6 {[%emt 0:01:10]} 18. Nh2 {[%emt 0:04:22]} Nf4 {[%emt 0:07:35]} 19. Qf3 {[%emt 0:01:08]} Ne7 {[%emt 0:04:36]} 20. Ng4 {[%emt 0:01:43]} Qd6 {[%emt 0:01:42]} 21. Bc4 {[%emt 0:05:12]} Neg6 {[%emt 0:04:19]} 22. g3 {[%emt 0:02:17]} Ne6 {[%emt 0:02:08]} 23. Bxh6 {[%emt 0:00:59]} gxh6 {[%emt 0:02:12]} 24. Nxh6+ {[%emt 0:02:33]} Kh7 {[%emt 0:00:07]} 25. Nxf7 {[%emt 0:03:25]} Qf8 {[%emt 0:02:25]} 26. Bxe6 {[%emt 0:09:44]} Rxe6 {[%emt 0:00:45]} 27. Ng5+ {[%emt 0:00:20]} Kg8 {[%emt 0:00:11]} 28. Qxf8+ {[%emt 0:00:40]} Nxf8 {[%emt 0:00:06]} 29. Nxe6 {[%emt 0:00:07]} Nxe6 {[%emt 0:00:05]} 30. Rad1 {[%emt 0:00:39]} Rf8 {[%emt 0:00:55]} 31. Re2 {[%emt 0:00:09]} Rf3 {[%emt 0:00:50]} 32. c4 {[%emt 0:05:23]} Rxg3+ {[%emt 0:02:15]} 33. Kh2 {[%emt 0:00:05]} Rf3 {[%emt 0:00:27]} 34. c5 {[%emt 0:00:10]} Ba7 {[%emt 0:00:46]} 35. Rg1+ {[%emt 0:01:51]} Kf7 {[%emt 0:01:31]} 36. Rg3 {[%emt 0:01:50]} Rf6 {[%emt 0:00:11]} 37. Rd2 {[%emt 0:00:12]} Nd4 {[%emt 0:05:39]} 38. Kg2 {[%emt 0:00:05]} b6 {[%emt 0:00:22]} 39. cxb6 {[%emt 0:06:14]} Bxb6 {[%emt 0:00:37]} 40. Rg5 {[%emt 0:01:03]} Ke6 {[%emt 0:06:01]} 41. Rg7 {[%emt 0:01:23]} Rf4 {[%emt 0:00:52]} 42. Rg4 {[%emt 0:00:35]} Rf6 {[%emt 0:01:02]} 43. h4 {[%emt 0:02:29]} Nf3 {[%emt 0:01:51]} 44. Re2 {[%emt 0:01:06]} Nd4 {[%emt 0:00:06]} 45. Re3 {[%emt 0:01:16]} Nc2 {[%emt 0:00:09]} 46. Re2 {[%emt 0:00:11]} Nxb4 {[%emt 0:01:45]} 47. h5 {[%emt 0:01:45]} Nd3 {[%emt 0:01:00]} 48. Rd2 {[%emt 0:02:13]} Nf4+ {[%emt 0:00:42]} 49. Kg1 {[%emt 0:00:49]} Nxh5 {[%emt 0:00:19]} 50. Rg8 {[%emt 0:00:25]} Nf4 {[%emt 0:01:13]} 51. Re8+ {[%emt 0:00:32]} Kf7 {[%emt 0:00:06]} 52. Rxe5 {[%emt 0:00:18]} Bd4 {[%emt 0:00:15]} 53. Rf5 {[%emt 0:02:31]} Rxf5 {[%emt 0:00:06]} 54. exf5 {[%emt 0:00:05]} c5 {[%emt 0:00:06]} 55. Rc2 {[%emt 0:00:22]} Kf6 {[%emt 0:00:21]} 56. Rc4 {[%emt 0:00:10]} Kxf5 {[%emt 0:00:28]} 57. Ra4 {[%emt 0:00:05]} Ke4 {[%emt 0:00:16]} 58. Rxa6 {[%emt 0:01:06]} c4 {[%emt 0:00:09]} 59. Rc6 {[%emt 0:00:08]} Kd3 {[%emt 0:00:08]} 60. Kh2 {[%emt 0:01:14]} Bxf2 {[%emt 0:01:45]} 61. a4 {[%emt 0:00:05]} c3 {[%emt 0:00:17]} 62. a5 {[%emt 0:00:04]} c2 {[%emt 0:00:26]} 63. a6 {[%emt 0:00:07]} Nd5 {[%emt 0:00:05]} 64. Rxc2 {[%emt 0:05:55]} Kxc2 {[%emt 0:00:24]} 65. Kg2 {[%emt 0:00:04]} Bb6 {[%emt 0:00:07]} 66. Kf3 {[%emt 0:00:04]} Nc7 {[%emt 0:00:06]} 67. Ke4 {[%emt 0:00:12]} Nxa6 {[%emt 0:00:30]} 68. Kd5 {[%emt 0:00:06]} Nb4+ {[%emt 0:00:19]} 69. Kc4 {[%emt 0:00:05]} Nd3 {[%emt 0:00:08]} 70. Kd5 {[%emt 0:00:04]} Kc3 {[%emt 0:00:05]} 71. Kc6 {[%emt 0:00:06]} Bd4 {[%emt 0:00:19]} 72. Kd5 {[%emt 0:00:05]} Nb4+ {[%emt 0:00:07]} 73. Ke4 {[%emt 0:00:10]} Kc4 {[%emt 0:00:10]} 74. Kf3 {[%emt 0:00:05]} Kd3 {[%emt 0:00:04]} 75. Kf4 {[%emt 0:00:03]} Bc5 {[%emt 0:00:58]} 76. Ke5 {[%emt 0:00:17]} Ke3 {[%emt 0:00:04]} 77. Kf5 {[%emt 0:00:08]} Nd3 {[%emt 0:00:05]} 78. Ke6 {[%emt 0:00:08]} Ke4 {[%emt 0:00:03]} 79. Kd7 {[%emt 0:00:04]} Kd5 {[%emt 0:00:04]} 80. Kc7 {[%emt 0:00:03]} Ne5 {[%emt 0:00:09]} 81. Kb7 {[%emt 0:00:32]} Kd6 {[%emt 0:00:35]} 82. Kc8 {[%emt 0:00:06]} Bb6 {[%emt 0:01:21]} 83. Kb7 {[%emt 0:00:05]} Kc5 {[%emt 0:00:03]} 84. Kc8 {[%emt 0:00:05]} Kc6 {[%emt 0:00:04]} 85. Kb8 {[%emt 0:00:06]} Nc4 {[%emt 0:02:01]} 86. Ka8 {[%emt 0:00:18]} Bc7 {[%emt 0:00:21]} 87. Ka7 {[%emt 0:00:03]} Nb6 {[%emt 0:03:04]} 88. Ka6 {[%emt 0:01:22]} Bb8 {[%emt 0:00:18]} 89. Ka5 {[%emt 0:00:04]} Nd5 {[%emt 0:00:03]} 90. Ka6 {[%emt 0:00:05]} Nc7+ {[%emt 0:00:22]} 91. Ka5 {[%emt 0:00:05]} Nd5 {[%emt 0:00:54]} 92. Ka6 {[%emt 0:00:04]} Nb4+ {[%emt 0:00:04]} 93. Ka5 {[%emt 0:00:04]} Kc5 {[%emt 0:00:03]} 94. Ka4 {[%emt 0:00:03]} Kc4 {[%emt 0:00:14]} 95. Ka5 {[%emt 0:00:08]} Bc7+ {[%emt 0:00:02]} 96. Ka4 {[%emt 0:00:04]} Nd3 {[%emt 0:00:45]} 97. Ka3 {[%emt 0:00:05]} Bb6 {[%emt 0:00:08]} 98. Ka4 {[%emt 0:00:03]} Nb2+ {[%emt 0:00:06]} 99. Ka3 {[%emt 0:00:04]} Kc3 {[%emt 0:00:06]} 100. Ka2 {[%emt 0:00:04]} Bc5 {[%emt 0:00:10]} 101. Kb1 {[%emt 0:00:04]} Nd3 {[%emt 0:00:04]} 102. Ka1 {[%emt 0:00:11]} Kc2 {[%emt 0:00:07]} 103. Ka2 {[%emt 0:00:04]} Nc1+ {[%emt 0:00:03]} 0-1

[Event "94th Paris-ch  2019"]
[Site "Paris"]
[Date "2019.07.09"]
[Round "4.13"]
[White "Macon, Arthur"]
[Black "Albaric, Etienne"]
[Result "0-1"]
[ECO "A36"]
[WhiteElo "2270"]
[BlackElo "2225"]
[Annotator "NA"]
[PlyCount "152"]
[EventDate "2019.07.07"]
[EventType "swiss"]
[EventCountry "FRA"]
[SourceTitle "playchess.com"]
[Source "ChessBase"]
[SourceDate "2019.07.09"]
[SourceQuality "1"]
[TimeControl "5400+30"]

1. Nf3 {[%emt 0:09:48]} c5 {[%emt 0:41:33]} 2. c4 {[%emt 0:00:53]} Nc6 {[%emt 0:00:04]} 3. Nc3 {[%emt 0:00:31]} g6 {[%emt 0:00:17]} 4. g3 {[%emt 0:01:10]} Bg7 {[%emt 0:00:03]} 5. Bg2 {[%emt 0:00:19]} d6 {[%emt 0:00:31]} 6. O-O {[%emt 0:00:52]} e6 {[%emt 0:00:11]} 7. a3 {[%emt 0:06:46]} Nge7 {[%emt 0:00:05]} 8. Rb1 {[%emt 0:13:28]} O-O {[%emt 0:00:05]} 9. b4 {[%emt 0:01:00]} e5 {[%emt 0:02:43]} 10. Ne1 {[%emt 0:09:38]} f5 {[%emt 0:07:24]} 11. d3 {[%emt 0:03:28]} cxb4 {[%emt 0:08:10]} 12. axb4 {[%emt 0:01:09]} f4 13. Nc2 {[%emt 0:06:26]} Nf5 {[%emt 0:03:28]} 14. Nd5 {[%emt 0:06:08]} Be6 {[%emt 0:03:54]} 15. Bb2 {[%emt 0:01:11]} Nce7 {[%emt 0:03:28]} 16. Nxe7+ {[%emt 0:05:37]} Qxe7 {[%emt 0:00:02]} 17. b5 {[%emt 0:00:39]} Bh6 {[%emt 0:03:55]} 18. d4 {[%emt 0:11:00]} Rad8 {[%emt 0:01:56]} 19. Qd3 {[%emt 0:04:29]} Bg7 {[%emt 0:03:16]} 20. d5 {[%emt 0:01:40]} Bc8 {[%emt 0:01:40]} 21. e4 {[%emt 0:09:15]} Nh6 {[%emt 0:00:24]} 22. Ra1 {[%emt 0:00:46]} Qf6 {[%emt 0:03:41]} 23. Rxa7 {[%emt 0:02:49]} f3 {[%emt 0:00:51]} 24. Bh1 {[%emt 0:00:05]} g5 {[%emt 0:02:35]} 25. Ne3 {[%emt 0:01:01]} Qg6 {[%emt 0:02:52]} 26. c5 {[%emt 0:03:06]} dxc5 {[%emt 0:00:31]} 27. Rc1 {[%emt 0:01:35]} Qb6 {[%emt 0:01:31]} 28. Ra3 {[%emt 0:01:49]} g4 {[%emt 0:00:47]} 29. Qc4 {[%emt 0:01:09]} Nf7 {[%emt 0:01:02]} 30. Nf5 {[%emt 0:01:19]} Bxf5 {[%emt 0:01:46]} 31. exf5 {[%emt 0:00:05]} h5 {[%emt 0:00:01]} 32. Qxc5 {[%emt 0:01:24]} Qxc5 {[%emt 0:00:12]} 33. Rxc5 {[%emt 0:00:06]} Nd6 {[%emt 0:00:30]} 34. Bxf3 {[%emt 0:04:28]} gxf3 {[%emt 0:00:01]} 35. Rxf3 {[%emt 0:00:09]} Rxf5 {[%emt 0:01:03]} 36. Rxf5 {[%emt 0:00:32]} Nxf5 37. Rc7 {[%emt 0:00:47]} Rxd5 {[%emt 0:04:41]} 38. Rxb7 {[%emt 0:00:06]} Nd4 {[%emt 0:02:34]} 39. b6 {[%emt 0:00:50]} Rb5 {[%emt 0:00:01]} 40. Ba3 {[%emt 0:00:57]} e4 {[%emt 0:00:21]} 41. Kg2 {[%emt 0:01:12]} Nc6 {[%emt 0:01:00]} 42. Bc1 {[%emt 0:00:23]} Bd4 {[%emt 0:00:50]} 43. Be3 {[%emt 0:00:32]} Bxe3 {[%emt 0:00:29]} 44. fxe3 {[%emt 0:00:01]} Ne5 {[%emt 0:01:02]} 45. Kf1 {[%emt 0:01:08]} Nc4 {[%emt 0:00:41]} 46. Rb8+ {[%emt 0:00:33]} Kg7 47. Rc8 {[%emt 0:00:29]} Nxb6 {[%emt 0:01:18]} 48. Re8 {[%emt 0:00:13]} Rb4 {[%emt 0:00:30]} 49. h3 {[%emt 0:00:30]} Nd5 {[%emt 0:00:35]} 50. Re5 {[%emt 0:00:23]} Nf6 {[%emt 0:00:37]} 51. Kf2 {[%emt 0:00:50]} Rb2+ {[%emt 0:00:16]} 52. Kf1 {[%emt 0:00:07]} Rh2 {[%emt 0:00:37]} 53. g4 {[%emt 0:00:34]} Rxh3 {[%emt 0:00:38]} 54. g5 {[%emt 0:00:10]} Ng4 {[%emt 0:00:25]} 55. Rxe4 {[%emt 0:00:17]} Rxe3 {[%emt 0:00:22]} 56. Ra4 {[%emt 0:00:20]} Kg6 {[%emt 0:00:11]} 57. Kg2 {[%emt 0:00:57]} Kxg5 {[%emt 0:00:10]} 58. Ra2 {[%emt 0:00:30]} Kf4 {[%emt 0:00:40]} 59. Ra4+ {[%emt 0:00:31]} Re4 {[%emt 0:00:15]} 60. Ra2 {[%emt 0:00:26]} Ne5 {[%emt 0:00:58]} 61. Kh3 {[%emt 0:00:47]} Ng6 {[%emt 0:00:28]} 62. Rf2+ {[%emt 0:00:29]} Kg5 {[%emt 0:00:11]} 63. Rg2+ {[%emt 0:00:15]} Rg4 {[%emt 0:00:07]} 64. Ra2 {[%emt 0:00:08]} Nf4+ {[%emt 0:00:29]} 65. Kh2 {[%emt 0:00:05]} Rh4+ {[%emt 0:00:28]} 66. Kg1 {[%emt 0:00:05]} Kg4 {[%emt 0:00:30]} 67. Ra8 {[%emt 0:00:27]} Rh3 {[%emt 0:00:19]} 68. Ra4 {[%emt 0:00:31]} h4 {[%emt 0:00:52]} 69. Rb4 {[%emt 0:00:41]} Rf3 {[%emt 0:00:47]} 70. Kh2 {[%emt 0:00:42]} Rf2+ {[%emt 0:00:15]} 71. Kg1 {[%emt 0:00:24]} Kg3 {[%emt 0:00:19]} 72. Rb3+ {[%emt 0:00:16]} Rf3 {[%emt 0:00:02]} 73. Rb1 {[%emt 0:00:14]} Nh3+ {[%emt 0:00:54]} 74. Kh1 {[%emt 0:00:04]} Nf2+ {[%emt 0:00:15]} 75. Kg1 {[%emt 0:00:05]} h3 {[%emt 0:00:15]} 76. Kf1 {[%emt 0:00:19]} h2 {[%emt 0:01:42]} 0-1